Cogmind - Beta 17.1 @@@ ROGUE MODE // 2026.09.23 @ 12:21:58 Player: Rocko1345 Result: Destroyed by Chaos Wyrm with Ragnarok Missile Launcher Performance ------------- Evolutions (0) 0 Regions Visited (3) 600 Robots Destroyed (9) 45 Value Destroyed (141) 141 Prototype IDs (1) 20 Alien Tech Used (0) 0 Bonus (5998) 5998 TOTAL SCORE: 6804 Bonus ------- Follower Combat Kills 248 Prayed to X0-1V1 5000 Major X0-1V1 Interference 750 Cogmind --------- Core Integrity 0/150 Matter 270/800 Energy 300/300 System Corruption 0% Temperature Cool (0) Movement Core (200) Ox3 Location -9/Scraptown Parts ------- > --- POWER (1) -------- (None) > --- PROPULSION (2) --- (None) > --- UTILITY (2) ------ Medium Storage Unit X0-1V1's Piety Tracker > --- WEAPON (2) ------- (None) > --- INVENTORY (10) --- Improved Treads Hardened Light Armor Plating Recalibrator Light Assault Rifle Light Assault Rifle Welding Torch Peak State ------------ > --- POWER ------------ (None) > --- PROPULSION ------- Subdweller Monowheel Subdweller Monowheel > --- UTILITY ---------- Medium Storage Unit X0-1V1's Piety Tracker > --- WEAPON ----------- Light Assault Rifle Minigun > --- INVENTORY -------- Assault Rifle Light Assault Rifle [Rating: 22] Favorites ----------- Power Ion Engine Engine Ion Engine Propulsion Subdweller Monowheel Leg Aluminum Leg Wheel Subdweller Monowheel Utility Medium Storage Unit Device X0-1V1's Piety Tracker Storage Medium Storage Unit Weapon Light Assault Rifle Energy Gun EM Pulse Gun Ballistic Gun Light Assault Rifle Build | -11 -10 -10 -9 ------- Run | Yrd Mat Sub Scr Slots Evolved . | . . . . Power . | . . . . Propulsion . | . . . . Utility . | . . . . Weapon . | . . . . Parts Attached 13 | 6 3 4 . Power 1 | 1 . . . Engine 1 | 1 . . . Core . | . . . . Reactor . | . . . . Propulsion 4 | 2 . 2 . Treads . | . . . . Leg 2 | 2 . . . Wheel 2 | . . 2 . Hover . | . . . . Flight . | . . . . Utility 3 | 1 2 . . Device 1 | . 1 . . Storage 2 | 1 1 . . Processor . | . . . . Hackware . | . . . . Protection . | . . . . Artifact . | . . . . Weapon 5 | 2 1 2 . Energy Gun 1 | 1 . . . Energy Cannon . | . . . . Ballistic Gun 4 | 1 1 2 . Ballistic Cannon . | . . . . Launcher . | . . . . Special Weapon . | . . . . Impact Weapon . | . . . . Slashing Weapon . | . . . . Piercing Weapon . | . . . . Special Melee Weapon . | . . . . Unidentified Prototypes 1 | . 1 . . Parts Lost 4 | . . 2 2 Power 1 | . . 1 . Propulsion 2 | . . . 2 Utility . | . . . . Weapon 1 | . . 1 . Highest Loss Streak 2 | . . 1 2 To Critical Strikes . | . . . . Average Backups 2 | . . 1 4 Power . | . . . . Propulsion . | . . . . Utility . | . . . 1 Weapon 1 | . . 1 1 Tool/Special . | . . . . Unused Backups 4 | . . . 4 Power . | . . . . Propulsion 1 | . . . 1 Utility 2 | . . . 2 Weapon . | . . . . Tool/Special 1 | . . . 1 Average Slot Usage (%) 77 | . 85 87 59 Engine 4 | . 14 2 . Leg 11 | . 28 11 . Wheel 16 | . . 16 27 Device 10 | . . 14 14 Storage 14 | . 14 14 14 Energy Gun 4 | . 14 1 . Ballistic Gun 15 | . 14 26 3 Peak Build Rating 22 | 6 19 22 22 Average Rating 15 | 4 6 21 18 On Entrance 11 | . 6 19 22 Avg Prop Armor Cover (%) 11 | . . 11 . Naked Turns . | . . . . Heaviest Build 19 | 14 19 19 15 Greatest Support 40 | 20 20 40 40 Greatest Overweight (x) 2 | 2 . . . Average Overweight (x) . | . . . . Largest Inventory Capacity 10 | 8 10 10 10 Average Capacity 9 | 6 9 10 10 Most Carried 6 | . 2 2 6 Average Carried 2 | . . 1 5 Final Capacity 10 | 8 10 10 10 Final Carried 6 | . 1 1 6 Class Distribution -------------------- 75% | Mutant 24% | Scavenger-Mutant Dominant Class ---------------- Mutant | -10/Materials Scavenger-Mutant | -10/Subcaves Mutant | -9/Scraptown Resources | -11 -10 -10 -9 ----------- Run | Yrd Mat Sub Scr Matter Collected 435 | 220 12 165 38 Remotely . | . . . . Salvage Created 218 | . 55 163 . Parts 17 | . 5 12 . Haulers Intercepted . | . . . . Recyclers Shooed . | . . . . Parts Field Recycled . | . . . . Retrieved Matter . | . . . . Parts Self-Destructed 4 | . . 4 . Prevented . | . . . . Parts Restored . | . . . . Kills | -11 -10 -10 -9 ------- Run | Yrd Mat Sub Scr Combat Hostiles Destroyed 8 | . 3 5 . Guns 8 | . 3 5 . Classes Destroyed 3 | . 2 1 . Worker 1 | . 1 . . Swarmer 6 | . 3 3 . Subdweller 2 | . . 2 . Best Kill Streak 4 | . 4 2 . Combat Bots Only 3 | . 3 2 . Max Kills in Single Turn 1 | . 1 1 . Gunslinging . | . . . . Exploded . | . . . . Melee . | . . . . Uniques/NPCs Destroyed . | . . . . Combat | -11 -10 -10 -9 -------- Run | Yrd Mat Sub Scr Hostile Shots Fired 97 | . 15 74 8 Missed 37 | . 3 32 2 Hits 60 | . 12 42 6 Melee 1 | . . . 1 Projectile 59 | . 12 42 5 Damage Taken 878 | . 89 460 329 Core 251 | . 14 85 152 Absorbed by Shields . | . . . . Core Remaining (%) 100 | 100 . . . Volleys Fired 36 | . 6 30 . Largest 2 | . 2 2 . Hottest 60 | . 60 60 . Shots Fired 71 | . 12 59 . Gun 71 | . 12 59 . Cannon . | . . . . Launcher . | . . . . Special . | . . . . Kinetic 58 | . 6 52 . Thermal . | . . . . Explosive . | . . . . Electromagnetic 13 | . 6 7 . Robot Hit Streak 11 | . 6 11 . Robot Miss Streak 6 | . 3 6 . Penetration Max . | . . . . Secondary Targets 3 | . 1 2 . Max Gunslinging Chain 1 | . 1 1 . Shots Hit Robots 40 | . 7 33 . Core Hits 16 | . 4 12 . Critical Kills . | . . . . Critical Parts Destroyed . | . . . . Critical Strikes . | . . . . Melee Attacks . | . . . . Impact . | . . . . Slashing . | . . . . Piercing . | . . . . Sneak Attacks . | . . . . Combat Hostiles . | . . . . Follow-up Attacks . | . . . . Damage Inflicted 568 | . 111 457 . Guns 568 | . 111 457 . Cannons . | . . . . Explosions . | . . . . Melee . | . . . . Ramming . | . . . . Kinetic 486 | . 63 423 . Thermal . | . . . . Explosive . | . . . . Electromagnetic 82 | . 48 34 . Impact . | . . . . Slashing . | . . . . Piercing . | . . . . Highest Corruption 2 | . . 2 2 Average Corruption 2 | . . 2 2 Corruption Purged . | . . . . Corruption Blocked . | . . . . Effects 3 | . . 3 . Matter Fused 1 | . . 1 . Energy Discharges 1 | . . 1 . Data Loss (minor) 1 | . . 1 . Overload Shots . | . . . . Overflow Damage . | . . . . Projectiles . | . . . . Explosions . | . . . . Melee . | . . . . Knockbacks . | . . . . Impact . | . . . . Kinetic . | . . . . Secondary . | . . . . Self-Inflicted Damage . | . . . . Shots . | . . . . Rammed . | . . . . Targets Rammed . | . . . . Kicked . | . . . . Crushed . | . . . . Highest Temperature . | . . . . Average Temperature . | . . . . Received Heat Transfer 24 | . . . 24 Siege Activations . | . . . . Martial Activations . | . . . . Shielding Activations . | . . . . Robots Disrupted . | . . . . Combat Hostiles . | . . . . Robots Corrupted . | . . . . Combat Hostiles . | . . . . Parts Fried . | . . . . Impact Corruptions . | . . . . Robots Melted . | . . . . Combat Hostiles . | . . . . Parts Melted . | . . . . Heat Transferred . | . . . . Parts Sabotaged . | . . . . Parts Stolen . | . . . . Parts Stripped . | . . . . Power Chain Reactions . | . . . . Alert | -11 -10 -10 -9 ------- Run | Yrd Mat Sub Scr Maximum Alert Level . | . . . . Low Security (%) 100 | 100 100 . . Level 1 . | . . . . Level 2 . | . . . . Level 3 . | . . . . Level 4 . | . . . . Level 5 . | . . . . High Security . | . . . . Max Security . | . . . . Peak Influence 65 | . 65 . . Initial . | . . . . Average 11 | . 15 . . Influence Increases 151 | . 81 70 . Destroy 0b10 Robot/C 120 | . 60 60 . Destroy 0b10 Robot/NC 5 | . 5 . . Destroy Leader 20 | . 10 10 . Successful Hack 6 | . 6 . . Influence Decreases 151 | . 36 115 . Entered New Map 22 | . . 22 . Time Decay 109 | . 36 73 . Lost Part 20 | . . 20 . Squads Dispatched 1 | . 1 . . Investigation . | . . . . Extermination . | . . . . Reinforcement 1 | . 1 . . Assault . | . . . . Garrison . | . . . . Intercept . | . . . . Searches Triggered . | . . . . Construction Impeded . | . . . . Haulers Reinforced . | . . . . Active Scanning Responses . | . . . . Cargo Convoy Interrupts . | . . . . Stealth | -11 -10 -10 -9 --------- Run | Yrd Mat Sub Scr Distress Signals . | . . . . Communications Jammed . | . . . . Distress Signals . | . . . . Times Spotted 18 | . 5 6 7 Peak Tracking Total 7 | . 4 5 7 Tactical Retreats . | . . . . Traps | -11 -10 -10 -9 ------- Run | Yrd Mat Sub Scr Traps Triggered . | . . . . Indirectly . | . . . . Trap Hack Attempts . | . . . . Triggered . | . . . . Disarmed . | . . . . Reprogrammed . | . . . . Reused . | . . . . Traps Extracted . | . . . . Installed . | . . . . Triggered . | . . . . Machines | -11 -10 -10 -9 ---------- Run | Yrd Mat Sub Scr Machines Disabled 4 | . . . 4 Max in Single Turn . | . . . . Machines Repaired . | . . . . Machines Dismantled . | . . . . Machines Sabotaged . | . . . . Overloaded Fab Kills . | . . . . Hacking | -11 -10 -10 -9 --------- Run | Yrd Mat Sub Scr Machines Accessed 2 | . 2 . . Terminals 2 | . 2 . . Fabricators . | . . . . Repair Stations . | . . . . Recycling Units . | . . . . Scanalyzers . | . . . . Garrison Access . | . . . . Total Hacks 7 | . 7 . . Successful 2 | . 2 . . Failed 5 | . 5 . . Catastrophic 1 | . 1 . . Database Lockouts . | . . . . Manual 5 | . 5 . . Terminals 7 | . 7 . . Fabricators . | . . . . Repair Stations . | . . . . Recycling Units . | . . . . Scanalyzers . | . . . . Garrison Access . | . . . . Terminal Hacks 2 | . 2 . . Branch Access Points 1 | . 1 . . Zone Layout 1 | . 1 . . Fabricator Hacks . | . . . . Repair Station Hacks . | . . . . Recycling Unit Hacks . | . . . . Scanalyzer . | . . . . Garrison Access Hacks . | . . . . Unauthorized Hacks . | . . . . Terminals . | . . . . Fabricators . | . . . . Repair Stations . | . . . . Recycling Units . | . . . . Scanalyzers . | . . . . Garrison Access . | . . . . Data Cores Recovered . | . . . . Used . | . . . . Hacking Detections 2 | . 2 . . Full Trace Events . | . . . . Feedback Events . | . . . . Feedback Blocked . | . . . . Robot Schematics Acquired . | . . . . Robots Built . | . . . . Authchips . | . . . . Time . | . . . . Total Robot Build Rating . | . . . . Part Schematics Acquired . | . . . . Parts Built . | . . . . Authchips . | . . . . Time . | . . . . Total Part Build Rating . | . . . . Part Studies Acquired . | . . . . Parts Repaired . | . . . . Time . | . . . . Parts Recycled . | . . . . Recycled Matter . | . . . . Retrieved Matter . | . . . . Retrieved Components . | . . . . Parts Scanalyzed . | . . . . Part Schematics Acquired . | . . . . Parts Damaged . | . . . . Bothacking | -11 -10 -10 -9 ------------ Run | Yrd Mat Sub Scr Used RIF Installer . | . . . . Robots Hacked . | . . . . Non-combat . | . . . . Combat . | . . . . Robot Hacks Applied . | . . . . Relay Couplers Released . | . . . . Fabnet Peak Effective % . | . . . . Robots Rewired . | . . . . Allies Hacked . | . . . . Hacks Repelled . | . . . . Allies | -11 -10 -10 -9 -------- Run | Yrd Mat Sub Scr Total Allies 1 | . . . 1 Largest Group 1 | . . . 1 Highest-Rated Group 464 | . . . 464 Highest-Rated Ally 464 | . . . 464 Total Orders . | . . . . Ally Attacks 4 | . . . 4 Total Damage 1617 | . . . 1617 Kills 8 | . . . 8 Allies Corrupted . | . . . . Allies Melted . | . . . . X0-1V1 Amusement Gains 23 | . 3 . 20 Average Entertainment 1 | . 3 . 11 Good Acts 2 | . . 2 . Bad Acts 8 | . . 8 . Intel | -11 -10 -10 -9 ------- Run | Yrd Mat Sub Scr Active Infowar (turns) . | . . . . Robot Analysis Total . | . . . . Derelict Logs Recovered . | . . . . Drone Launches . | . . . . Drone Recoveries . | . . . . Exploration | -11 -10 -10 -9 ------------- Run | Yrd Mat Sub Scr Turns Passed 870 | 61 193 348 268 Spaces Moved 635 | 52 128 216 239 Core 20 | 20 . . . Treads . | . . . . Legs 199 | 32 128 39 . Wheels 416 | . . 177 239 Hover . | . . . . Flight . | . . . . Fastest Speed 50 | 50 120 110 110 Average Speed 111 | 101 120 111 110 Slowest Speed 150 | 150 120 120 110 Overloaded Moves . | . . . . Propulsion Burnouts . | . . . . Robots Hopped . | . . . . Potential Cave-ins . | . . . . Cave-ins Triggered . | . . . . Exploration Rate (%) 17 | 4 21 20 24 Regions Visited 3 Branch Regions 2 Pre-discovered Areas . | . . . . Known Exits Taken . | . . . . Unknown Exits Taken 3 | 1 1 1 . Scrap Searched 1 | . . . 1 Spaces Dug . | . . . . Terrain Destroyed . | . . . . Melee . | . . . . Projectile . | . . . . AOE . | . . . . Terrain Rammed . | . . . . Walls Destroyed . | . . . . Machines Disabled . | . . . . Actions | -11 -10 -10 -9 --------- Run | Yrd Mat Sub Scr Total 729 | 57 155 272 245 Wait 36 | . 17 19 . Move 632 | 51 127 215 239 Hop . | . . . . Pick Up 5 | . 1 . 4 Fast Attach 7 | 6 1 . . Attach 2 | . 1 1 . Detach 2 | . . . 2 Swap 5 | . 1 4 . Drop 2 | . 1 1 . Fire 36 | . 6 30 . Melee . | . . . . Ram . | . . . . Kick . | . . . . Crush . | . . . . Escape Stasis . | . . . . Rewire 2 | . . 2 . Trap . | . . . . Miscellaneous . | . . . . Route ------- -11/Scrapyard -10/Materials (discovered 3 exits: *Min x2 / [*Sub]) -10/Subcaves (discovered 2 exits: [*Mat] / [*Scr]) -9/Scraptown History --------- Turn | Location | Event 6 | -11/Scrapyard | Discovered new exit (range 16) 62 | -11/Scrapyard | Entered Materials 120 | -10/Materials | Identified exit to Mines 234 | -10/Materials | Discovered new exit (range 4) 244 | -10/Materials | Prayed at D.C.S.S. Altar Unit 255 | -10/Materials | Entered Subcaves 256 | -10/Subcaves | Approached by a straggling Scientist 314 | -10/Subcaves | Build established: Mutant 558 | -10/Subcaves | X0-1V1 caused items to flee you 590 | -10/Subcaves | Energy capacity permanently improved by X0-1V1 (+200; -100 max core) 599 | -10/Subcaves | Scientist uncovered a shortcut to Scraptown 599 | -10/Subcaves | Discovered new exit (range 9) 603 | -10/Subcaves | Entered Scraptown 606 | -9/Scraptown | System corruption cleaned by C-Scrubber 823 | -9/Scraptown | Visited Scrapoid Research Area 849 | -9/Scraptown | Visited SPCMW 858 | -9/Scraptown | Visited Shadow of the Wyrm 865 | -9/Scraptown | X0-1V1 brought Wyrm Statue to life 865 | -9/Scraptown | Attacked by Scraptown defenders 867 | -9/Scraptown | Core integrity fell below 50% 871 | -9/Scraptown | Core integrity fell below 20% 871 | -9/Scraptown | Destroyed by Chaos Wyrm with Ragnarok Missile Launcher Last Messages --------------- 00865_ A towering statue of a majestic wyrm. 00865_ X0-1V1 animates Wyrm Statue. 00865_ ANNOUNCEMENT: Intruder alert! Defend Scraptown! 00865_ F7-OX0(g) destroyed. 00866_ VU-1LT(x): "This is not Wyrm! Who would do such a thing? And how?" 00866_ HY-CZ1(g) destroyed. 00866_ 39-72Y(g) destroyed. 00866_ CR-GOB(g) destroyed. 00866_ KS-MLZ(c) destroyed. 00866_ Machine disabled. 00867_ Penetrated by Bolt. 00869_ AR-583(h) destroyed. 00869_ Sub. Monowheel destroyed. 00869_ X0-1V1 is amused. 00869_ VU-1LT(x) destroyed. 00871_ MQ-GTS(l) destroyed. 00871_ Sub. Monowheel destroyed. 00871_ X0-1V1 guffaws! Map ----- +----------------------------------------------------+ | ????????????????????????????# #???????? ? ?????? | | ??????????????????????????### #??????? ? "#"""" | | ??????????????????????????? #?????? " ? #"""" | | ??????????????????????????? #?????? " # | | ???????????????????????????## #?????? # | | ???????????????????????????# #???????"""""?? | | ????????????????????######### ########## ##### # | | ??????????????????? """ # | | ???????????????????""""" # | | ??????????????#" """ # | | ???????????????"" | | ??????????????#" # | | ??????????????# # ################# | | ??????????????# """ # #???????????????# | | ??????????????????""" " # #???????????????# | | ??????????????????"" """ # #???????????????# | | ??????????????????######### #???????????????# | | ??????????????????????????# c#?##????????????# | | ??????????????????????????# ## ?? ????????# | | ??????????????????????????# c# """"""???????# | | ??????????????????######### # "" ""??????# | | ?????????????????## # # " "??????# | | ????????????????## # # " " ?????# | | ????????????????# [ # " " ?????# | | ????????????????# DD g " " ?????# | | ????????????????# DD @ # "" ""??????# | | ????????????????# # """""" ??????# | | ????????????????# ## ??????????# | | ????????????????## # #?#####?######### | | ?????????????????## ## ????? | | ??????????????????######### ??? | | ??????????????????????????# c ??? | | ??????????????????????????# ?? | | ??????????????????????????# ? | | ?????????????????????????? ?? | | ?????????????????????????? ??? | | ????????????????????????? ???? | | ??????????????????????????#######????????### ##### | | ?????????????????????????????????????????? ????? | | ?????????????????????????????????????????? ??????? | | ?????????????????????????????????????????????????? | | ?????????????????????????????????????????????????? | | ?????????????????????????????????????????????????? | | ?????????????????????????????????????????????????? | | ?????????????????????????????????????????????????? | | ?????????????????????????????????????????????????? | | ????????????????????????#????????????????????????? | | ????????????#####?????? #????????????????????????? | | ????????????#"""#????? #????????????????????????? | | ????????????#" "#????? #????????????????????????? | +----------------------------------------------------+ Best States ------------- Heat Dissipation 25 Energy Generation 10 Energy Capacity 300 Matter Stores 265 Matter Capacity 800 Sight Range 16 Terrain Scan Density 10 Evasion (%) 55 Item Schematics ----------------- None Robot Schematics ------------------ None Fabricated ------------ Nothing Repaired ---------- Nothing Studied --------- None Alien Tech Used ----------------- None Achievements -------------- Chaos Is Inevitable Challenges ------------ None Game ------ Seed SingularityNuclearCompanion Manual? 0 Play Time 00:09:03 Cumulative 249.4 hours Start 2026.09.23 @ 12:14:23 End 2026.09.23 @ 12:21:58 Sessions 1 Manual Loads 0 Difficulty Rogue Special Mode None Game No. 312 Rogue 138 Adventurer 174 Explorer 0 Win Type - Total 1 Types 1/0/0/0/0/0/0/0/0/0 Lore% 68 Gallery% 57 Achievement% 42 Wizard Run 0 Options --------- Layout 2 ASCII 0 Keyboard 1 Movement Numpad Keybinds 0 Fullscreen 1 Font 24/Smallcaps Map View 50x44 Zoom Use 0% Tactical HUD 1 Map Filters NONE Filters NONE Steam 1 RUN: eaaf5c91-2d97-4a78-b59c-3f647bbedf11